bitfinex-derivatives/quotes_ETHF0:USTF0_20250331
["timestamp","ask_amount","ask_price","bid_price","bid_amount"]
[1743406563892,1.1591,1794.8,1794.7,8.68639]
[1743406564398,1.1591,1794.8,1794.7,49.48639]
[1743406565895,0.00552589,1794.9,1794.8,1.11453]
[1743406566289,0.00552589,1794.9,1794.8,2.40983]
[1743406566693,0.00552589,1794.9,1794.8,43.20983]
[1743406567396,0.00552589,1794.9,1794.8,45.70983]
[1743406567602,0.00552589,1794.9,1794.8,46.27053]
[1743406567804,1.07442589,1794.9,1794.8,46.27053]
[1743406568298,1.07442589,1794.9,1794.8,46.26853]
[1743406568499,1.07442589,1794.9,1794.8,47.56383]
[1743406569801,0.00552589,1794.9,1794.8,50.06383]
[1743406570208,0.00552589,1794.9,1794.8,47.55383]
[1743406571401,0.00552589,1794.9,1794.8,43.20983]
[1743406571691,0.00552589,1794.9,1794.8,46.24853]
[1743406572103,0.00552589,1794.9,1794.8,47.54203]
[1743406572303,0.00552589,1794.9,1794.8,46.24853]
[1743406572800,1.11998589,1794.9,1794.8,40.8]
[1743406573107,2.19668589,1794.9,1794.8,41.91453]
[1743406573400,1.08222589,1794.9,1794.8,41.91453]
[1743406573602,1.08222589,1794.9,1794.8,46.24753]
[1743406574303,2.57462589,1794.9,1794.8,46.24753]
[1743406574505,1.49792589,1794.9,1794.8,46.24753]
[1743406574895,1.49792589,1794.9,1794.8,47.54103]
[1743406575995,1.49792589,1794.9,1794.8,46.24753]
[1743406579708,1.49792589,1794.9,1794.8,47.54163]
[1743406580203,1.49792589,1794.9,1794.8,43.20863]
[1743406580409,1.49792589,1794.9,1794.8,46.22253]
[1743406587712,1.49792589,1794.9,1794.8,49.43033]
[1743406588410,1.49792589,1794.9,1794.8,50.72483]
[1743406588613,2.61238589,1794.9,1794.8,45.12233]
[1743406588808,1.49792589,1794.9,1794.8,45.12233]
[1743406589114,2.61238589,1794.9,1794.8,45.12233]
[1743406591508,2.61238589,1794.9,1794.8,44.0078]
[1743406591703,2.61238589,1794.9,1794.8,40.8]
[1743406591704,5.11238589,1794.9,1794.8,40.8]
[1743406592818,1.49792589,1794.9,1794.8,41.91453]
[1743406593022,1.49792589,1794.9,1794.8,45.12233]
[1743406595318,2.61238589,1794.9,1794.8,45.12233]
[1743406595518,1.49792589,1794.9,1794.8,45.12233]
[1743406597420,5.89e-06,1794.9,1794.8,47.62233]
[1743406597619,1.114,1795.7,1795.6,1.11397]
[1743406598323,2.5704,1795.7,1795.6,41.91397]
[1743406598919,2.5704,1795.7,1795.6,40.8]
[1743406599223,2.5704,1795.7,1795.6,41.91403]
[1743406599526,2.5704,1795.7,1795.6,40.8]
[1743406599916,2.5704,1795.7,1795.6,41.91403]
[1743406600414,2.5704,1795.7,1795.6,40.8]
[1743406600616,2.5704,1795.7,1795.6,41.91403]
[1743406600817,1.4564,1795.7,1795.6,41.91403]
[1743406601022,2.57037,1795.7,1795.6,41.91403]
[1743406601522,1.4564,1795.7,1795.6,41.91403]
[1743406602422,1.4564,1795.7,1795.6,46.13603]
[1743406602719,1.4564,1795.7,1795.6,47.42963]
[1743406603527,1.4564,1795.7,1795.6,41.91403]
[1743406604926,2.57037,1795.7,1795.6,41.91403]
[1743406605119,1.4564,1795.7,1795.6,41.91403]
[1743406605928,1.4564,1795.7,1795.6,43.20813]
[1743406606130,1.4564,1795.7,1795.6,41.91403]
[1743406606729,2.57037,1795.7,1795.6,41.91403]
[1743406607232,2.57037,1795.7,1795.6,40.8]
[1743406608033,1.4564,1795.7,1795.6,41.91403]
[1743406608930,2.57037,1795.7,1795.6,41.91403]
[1743406609129,1.4564,1795.7,1795.6,41.91403]
[1743406609331,2.57037,1795.7,1795.6,41.91403]
[1743406610833,1.4564,1795.7,1795.6,41.91403]
[1743406611724,2.57037,1795.7,1795.6,40.8]
[1743406611924,5.07037,1795.7,1795.6,40.8]
[1743406612834,8.27817,1795.7,1795.6,40.8]
[1743406613329,5.57026,1795.6,1795.2,3.2078]
[1743406613524,1.1144,1795.1,1795.0,8.53719]
[1743406613828,2.78567,1795.3,1794.8,3.2078]
[1743406614125,1.4317,1795.0,1794.9,1.11446]
[1743406614323,1.4317,1795.0,1794.9,41.91446]
[1743406615329,2.5461,1795.0,1794.9,41.91446]
[1743406615631,1.4317,1795.0,1794.9,41.91446]
[1743406615832,1.4317,1795.0,1794.9,43.20766]
[1743406616427,2.5461,1795.0,1794.9,41.91446]
[1743406616629,2.5461,1795.0,1794.9,40.8]
[1743406618936,1.4317,1795.0,1794.9,43.20926]
[1743406619630,2.5461,1795.0,1794.9,43.20926]
[1743406619827,2.5461,1795.0,1794.9,41.91446]
[1743406620426,2.5461,1795.0,1794.9,40.8]
[1743406620631,1.4317,1795.0,1794.9,41.91446]
[1743406620832,1.4317,1795.0,1794.9,43.20926]
[1743406621130,2.5461,1795.0,1794.9,41.91446]
[1743406621324,2.5461,1795.0,1794.9,40.8]
[1743406621531,1.11446,1794.9,1794.8,0.00837451]
[1743406621736,1.11465,1794.6,1794.5,8.5205]
[1743406621930,1.11465,1794.6,1794.5,7.4058]
[1743406622126,1.11477,1794.5,1794.4,5.31376]
[1743406622338,1.5181,1794.7,1794.3,5.9949]
[1743406622634,1.11465,1794.6,1794.5,3.2078]
[1743406623037,2.78617,1794.9,1794.5,44.0078]
[1743406623236,1.11465,1794.6,1794.5,40.8]
[1743406624639,3.61465,1794.6,1794.5,40.8]
[1743406625337,4.72485,1794.6,1794.5,40.8]
[1743406625841,1.11477,1794.4,1794.3,0.00837451]
[1743406626138,1.11502,1794.0,1793.9,3.2078]
[1743406626942,1.11501,1794.1,1793.9,45.12285]
[1743406627238,1.11502,1794.0,1793.9,44.0078]
[1743406629144,2.18112,1794.0,1793.9,44.0078]
[1743406632340,2.18112,1794.0,1793.9,40.8]
[1743406633138,4.68112,1794.0,1793.9,40.8]
[1743406633533,1.11509,1793.9,1793.8,0.00837451]
[1743406633737,1.1154,1793.4,1793.3,7.3908]
[1743406634144,2.78819,1793.6,1793.1,5.61754]
[1743406634145,1.11552,1793.2,1793.1,5.61754]
[1743406634355,3.9039,1793.4,1793.1,3.2078]
[1743406634545,2.78865,1793.3,1792.8,4.502]
[1743406634847,1.11571,1792.9,1792.8,5.4812]
[1743406635140,1.11571,1792.9,1792.8,49.489]
[1743406635449,1.11571,1792.9,1792.8,44.0078]
[1743406638247,3.61571,1792.9,1792.8,40.8]
[1743406638645,7.80771,1792.9,1792.8,40.8]
[1743406639441,2.56131,1792.9,1792.8,40.8]
[1743406642050,5.06131,1792.9,1792.8,40.8]
[1743406642553,1.11577,1792.8,1792.7,0.00837451]
[1743406642763,1.11596,1792.5,1792.4,3.2078]
[1743406643555,2.59606,1792.5,1792.4,44.0078]
[1743406645853,3.70266,1792.5,1792.4,44.0078]
[1743406646361,3.70266,1792.5,1792.4,45.3043]
[1743406646654,3.70266,1792.5,1792.4,44.0078]
[1743406646860,3.70266,1792.5,1792.4,40.8]
[1743406648249,6.20266,1792.5,1792.4,40.8]
[1743406648551,1.11602,1792.4,1792.3,4.51e-06]
[1743406648753,8.8345,1792.4,1791.6,3.2078]
[1743406648957,1.11658,1791.5,1791.4,4.5033]
[1743406649153,1.11658,1791.5,1791.4,5.61992]
[1743406649372,1.11656,1791.6,1791.4,46.41992]
[1743406649558,1.11656,1791.6,1791.5,1.2955]
[1743406650153,1.11656,1791.6,1791.5,40.8]
[1743406650551,1.11656,1791.6,1791.5,42.0955]
[1743406650952,1.11656,1791.6,1791.5,40.8]
[1743406651357,1.11656,1791.6,1791.5,42.0955]
[1743406651551,1.11656,1791.6,1791.5,40.8]
[1743406651955,1.11656,1791.6,1791.5,42.0955]
[1743406652857,1.11656,1791.6,1791.5,44.0078]
[1743406653064,3.61656,1791.6,1791.5,40.8]
[1743406653359,1.11656,1791.6,1791.5,40.8]
[1743406653553,2.61656,1791.6,1791.5,40.8]
[1743406654950,0.00837451,1791.7,1791.6,1.11652]
[1743406655157,0.00837451,1791.7,1791.6,2.41352]
[1743406655665,0.00837451,1791.7,1791.6,42.097]
[1743406655865,1.12482451,1791.7,1791.6,42.097]
[1743406656464,0.00837451,1791.7,1791.6,43.21352]
[1743406657257,3.87308,1792.4,1791.7,2.79112]
[1743406657462,7.3698,1792.6,1791.7,2.79112]
[1743406657463,1.11614,1792.2,1792.1,1.1162]
[1743406657657,1.11614,1792.2,1792.1,1.297]
[1743406658354,1.11614,1792.2,1792.1,42.097]
[1743406658752,1.11614,1792.2,1792.1,40.8]
[1743406659265,4.32394,1792.2,1792.1,40.8]
[1743406660463,1.11614,1792.2,1792.1,40.8]
[1743406662166,1.43777451,1792.3,1792.1,40.8]
[1743406662360,1.12445451,1792.3,1792.2,1.2957]
[1743406662959,1.12445451,1792.3,1792.2,42.0957]
[1743406663163,1.12445451,1792.3,1792.2,40.8]
[1743406663665,0.00837451,1792.3,1792.2,41.91614]
[1743406663863,1.12445451,1792.3,1792.2,41.91614]
[1743406664066,1.12445451,1792.3,1792.2,40.8]
[1743406664969,2.62815451,1792.3,1792.2,42.0951]
[1743406666376,2.62815451,1792.3,1792.2,40.8]
[1743406668474,9.27215451,1792.3,1792.2,40.8]
[1743406668970,1.11621,1792.1,1792.0,3.2078]
[1743406669166,3.2078,1792.1,1791.4,0.005583]
[1743406669374,1.11658,1791.5,1791.4,0.005583]
[1743406669866,3.53168,1791.5,1791.4,40.805583]
[1743406670470,1.11689,1791.0,1790.9,1.0636]
[1743406670678,1.11695,1790.9,1790.8,1.2947]
[1743406670870,1.11685,1791.1,1790.8,1.2947]
[1743406671066,3.2078,1791.3,1791.0,1.11689]
[1743406671369,3.2078,1791.3,1790.9,3.2078]
[1743406671370,3.2078,1791.3,1791.1,1.2947]
[1743406671570,3.2078,1791.3,1791.2,41.8636]
[1743406671778,0.00837451,1791.4,1791.3,1.1167]
[1743406671973,1.84860337,1792.1,1791.9,1.11632]
[1743406672276,1.84856337,1792.1,1792.0,1.2947]
[1743406672470,1.3733,1793.6,1792.0,105.9525]
[1743406672668,1.11553,1793.2,1792.9,1.11566]
[1743406672868,1.11558,1793.1,1793.0,4.5025]
[1743406673476,2.63428,1793.1,1793.0,45.3025]
[1743406673668,0.00837451,1793.2,1793.0,45.3025]
[1743406673976,0.00837451,1793.2,1793.0,46.41809]
[1743406674167,0.00837451,1793.2,1793.1,1.11558]
[1743406674766,0.00837451,1793.2,1793.0,5.61812]
[1743406675074,1.12392451,1793.2,1793.0,4.5025]
[1743406675266,0.00837451,1793.2,1793.0,4.5025]
[1743406675468,0.00837451,1793.2,1793.1,1.11558]
[1743406676172,0.00837451,1793.2,1793.0,4.5025]
[1743406676173,1.11558,1793.1,1793.0,3.2078]
[1743406676379,2.56148,1793.1,1793.0,3.2078]
[1743406677178,1.4459,1793.1,1793.0,44.0078]
[1743406677380,1.12393451,1793.2,1793.0,44.0078]
[1743406677381,0.00837451,1793.2,1793.1,1.11558]
[1743406678074,0.00837451,1793.2,1793.1,43.10618]
[1743406678580,3.8723,1793.8,1793.2,1.11549]
[1743406678778,1.11537,1793.5,1793.3,8.8788]
[1743406678975,2.51122,1793.7,1793.4,1.295]
[1743406679181,1.11527,1793.6,1793.4,2.41038]
[1743406679396,1.396,1793.7,1793.5,3.2078]
[1743406679578,2.51121,1793.7,1793.6,1.295]
[1743406679775,2.51121,1793.7,1793.5,3.2078]
[1743406679776,1.11527,1793.6,1793.5,3.2078]
[1743406680082,2.51127,1793.6,1793.5,3.2078]
[1743406680277,2.51127,1793.6,1793.5,44.0078]
[1743406680976,1.396,1793.6,1793.5,44.0078]
[1743406681181,1.11524,1793.7,1793.5,44.0078]
[1743406681379,1.11527,1793.6,1793.5,45.3028]
[1743406681581,1.11527,1793.6,1793.5,44.0078]
[1743406681781,1.11525,1793.7,1793.5,44.0078]
[1743406681981,2.61317,1793.6,1793.5,44.0078]
[1743406682883,1.4979,1793.6,1793.5,44.0078]
[1743406683081,1.4979,1793.6,1793.5,46.41813]
[1743406683689,0.00837451,1793.8,1793.7,1.11521]
[1743406683893,0.00837451,1793.8,1793.7,8.70701]
[1743406684287,0.00837451,1793.8,1793.7,50.80201]
[1743406684587,0.00837451,1793.8,1793.7,49.6868]
[1743406684882,0.00837451,1793.8,1793.7,50.80201]
[1743406685486,0.00837451,1793.8,1793.7,45.3028]
[1743406685685,0.00837451,1793.8,1793.7,50.79001]
[1743406686084,0.00837451,1793.8,1793.7,49.6748]
[1743406686285,1.40467451,1793.8,1793.7,49.6748]
[1743406686484,2.51982451,1793.8,1793.7,44.0078]
[1743406688291,1.40467451,1793.8,1793.7,44.0078]
[1743406688486,5.77667451,1793.8,1793.7,44.0078]
[1743406688684,1.11564,1793.0,1792.4,3.2078]
[1743406688883,8.76644,1793.0,1792.4,4.5027]
[1743406689279,11.26644,1793.0,1792.1,3.2078]
[1743406689487,1.11597,1792.5,1792.2,2.41102]
[1743406689788,2.78928,1792.9,1792.2,6.86177337]
[1743406689789,1.5063,1792.4,1792.2,6.86177337]
[1743406689989,2.62234,1792.4,1792.3,5.56687337]
[1743406690987,2.62232,1792.4,1792.3,5.56687337]
[1743406691588,1.11608,1792.3,1792.2,0.00837451]
[1743406691787,5.82658,1792.3,1792.2,0.00837451]
[1743406693380,5.82658,1792.3,1792.2,5.57524788]
[1743406693585,2.61878,1792.3,1792.2,5.57524788]
[1743406693796,2.61878,1792.3,1792.2,0.00837451]
[1743406695305,5.82658,1792.3,1792.2,0.00837451]
[1743406695916,10.23658,1792.3,1792.2,0.00837451]
[1743406696514,5.82658,1792.3,1792.2,0.00837451]
[1743406696715,5.82658,1792.3,1792.2,5.57524788]
[1743406697512,2.61878,1792.3,1792.2,5.57524788]
[1743406697713,1.5027,1792.3,1792.2,5.57524788]
[1743406697914,0.00837451,1792.5,1792.4,1.11602]
[1743406698115,0.00837451,1792.5,1792.4,6.68289337]
[1743406698808,0.00837451,1792.5,1792.4,7.97979337]
[1743406699715,1.12433451,1792.5,1792.4,7.97979337]
[1743406700009,0.00837451,1792.5,1792.4,7.97979337]
[1743406700210,1.12433451,1792.5,1792.4,7.97979337]
[1743406700406,0.00837451,1792.5,1792.4,7.97979337]
[1743406701214,0.00837451,1792.5,1792.4,11.18759337]
[1743406702111,1.1157,1793.0,1792.4,7.0047]
[1743406702312,1.11575,1792.9,1792.8,1.11572]
[1743406702519,1.11575,1792.9,1792.8,2.41322]
[1743406702717,1.11575,1792.9,1792.8,7.98009337]
[1743406702913,2.56398,1793.0,1792.9,1.11571]
[1743406703115,1.11553,1793.3,1792.9,9.89038337]
[1743406703308,1.5138,1793.3,1793.2,1.11549]
[1743406703509,2.63763451,1793.3,1793.2,6.68236337]
[1743406703710,2.63763451,1793.3,1793.2,7.97896337]
[1743406703910,1.52217451,1793.3,1793.2,7.97896337]
[1743406704114,0.00837451,1793.3,1793.2,7.97896337]
[1743406704712,1.12383451,1793.3,1793.2,7.97896337]
[1743406705112,0.00837451,1793.3,1793.2,7.97896337]
[1743406705610,1.12383451,1793.3,1793.2,7.97896337]
[1743406705809,0.00837451,1793.3,1793.2,7.97896337]
[1743406706017,0.00837451,1793.3,1793.2,6.68239337]
[1743406706320,0.00837451,1793.3,1793.2,9.89019337]
[1743406707822,0.00837451,1793.3,1793.2,12.39019337]
[1743406708719,0.00837451,1793.3,1793.2,9.89019337]
[1743406710622,0.00837451,1793.3,1793.2,12.39019337]
[1743406712020,0.00837451,1793.3,1793.2,9.89019337]
[1743406712215,2.59433451,1793.3,1793.2,14.23219337]
[1743406712818,2.59433451,1793.3,1793.2,5.56687337]
[1743406713527,1.11558,1793.1,1793.0,3.2078]
[1743406713823,2.28452,1793.2,1793.1,5.56687337]
[1743406714013,1.11563,1793.1,1793.0,1.1156]
[1743406714327,1.4705,1793.1,1793.0,6.68247337]
[1743406715628,2.58433451,1793.3,1793.2,1.11552]
[1743406715924,1.46887451,1793.3,1793.2,1.11552]
[1743406716126,2.58433451,1793.3,1793.2,6.68239337]
[1743406716318,1.46887451,1793.3,1793.2,6.68239337]
[1743406716521,2.58433451,1793.3,1793.2,6.68239337]
[1743406716717,1.46887451,1793.3,1793.2,6.68239337]
[1743406716922,2.58433451,1793.3,1793.2,9.89019337]
[1743406717121,2.58433451,1793.3,1793.2,6.68239337]
[1743406717422,2.58433451,1793.3,1793.2,9.89019337]
[1743406717818,1.46887451,1793.3,1793.2,9.89019337]
[1743406718220,1.46887451,1793.3,1793.2,11.18629337]
[1743406719623,2.58433451,1793.3,1793.2,9.89019337]
[1743406719821,1.46887451,1793.3,1793.2,6.68239337]
[1743406720127,1.46887451,1793.3,1793.2,9.89019337]
[1743406720326,2.78711,1794.3,1794.0,1.11498]
[1743406720532,1.1423,1794.1,1793.7,7.09702]
[1743406720723,1.11509,1793.9,1793.8,9.87687337]
[1743406721022,1.11509,1793.9,1793.8,5.42515]
[1743406721227,1.11509,1793.9,1793.8,10.99198337]
[1743406722030,2.58344451,1794.0,1793.9,1.11509]
[1743406722229,2.58344451,1794.0,1793.9,5.56687337]
[1743406722527,2.58344451,1794.0,1793.9,6.68196337]
[1743406722924,2.58344451,1794.0,1793.9,5.56687337]
[1743406723326,2.58344451,1794.0,1793.9,6.68196337]
[1743406723531,2.58344451,1794.0,1793.9,5.56687337]
[1743406724532,1.11515,1793.8,1793.7,0.00837451]
[1743406724732,1.11515,1793.8,1793.7,6.69045788]
[1743406724935,1.11515,1793.8,1793.7,5.57524788]
[1743406725229,1.4988,1793.8,1793.7,6.69045788]
[1743406725627,2.61395,1793.8,1793.7,6.69045788]
[1743406726132,1.4988,1793.8,1793.7,6.69045788]
[1743406726322,1.4988,1793.8,1793.7,9.89825788]
[1743406728533,2.61395,1793.8,1793.7,9.89825788]
[1743406729537,2.61395,1793.8,1793.7,6.69045788]
[1743406729721,2.61395,1793.8,1793.7,5.57524788]
[1743406729929,2.61395,1793.8,1793.7,6.69045788]
[1743406733937,2.61395,1793.8,1793.7,9.81024788]
[1743406734235,2.61395,1793.8,1793.7,6.69045788]
[1743406735540,2.61395,1793.8,1793.7,5.57524788]
[1743406736435,1.11536,1793.5,1793.4,1.11534]
[1743406736641,1.11536,1793.5,1793.4,6.68221337]
[1743406736842,1.11532,1793.6,1793.5,1.1153]
[1743406737042,1.11532,1793.6,1793.5,5.56687337]
[1743406737242,1.11532,1793.6,1793.5,6.68220337]
[1743406737534,1.11532,1793.6,1793.5,5.56687337]
[1743406737741,2.614,1793.8,1793.7,1.11521]
[1743406737938,1.4988,1793.8,1793.7,1.11521]
[1743406738143,1.4988,1793.8,1793.7,6.68208337]
[1743406738445,2.61395,1793.8,1793.7,6.68208337]
[1743406738637,1.4988,1793.8,1793.7,6.68208337]
[1743406739142,2.61395,1793.8,1793.7,6.68208337]
[1743406739437,2.61395,1793.8,1793.7,5.56687337]
[1743406740544,1.4988,1793.8,1793.7,6.68208337]
[1743406740945,1.4988,1793.8,1793.7,11.18508337]
[1743406741638,2.61395,1793.8,1793.7,11.18508337]
[1743406741838,1.4988,1793.8,1793.7,11.18508337]
[1743406742039,2.61395,1793.8,1793.7,11.18508337]
[1743406742544,2.61395,1793.8,1793.7,9.88988337]
[1743406743347,2.61395,1793.8,1793.7,5.56687337]
[1743406743647,1.11533,1793.5,1793.4,0.00837451]
[1743406744045,1.11533,1793.5,1793.4,5.57524788]
[1743406744544,2.54273,1793.5,1793.4,5.57524788]
[1743406745339,2.54273,1793.5,1793.4,0.00837451]
[1743406745844,1.4274,1793.5,1793.4,5.57524788]
[1743406746050,2.54273,1793.5,1793.4,5.57524788]
[1743406747747,2.54273,1793.5,1793.4,6.69064788]
[1743406747951,1.4274,1793.5,1793.4,6.69064788]
[1743406748145,2.54273,1793.5,1793.4,6.69064788]
[1743406748449,2.54273,1793.5,1793.4,5.57524788]
[1743406748642,5.75053,1793.5,1793.4,0.00837451]
[1743406748948,2.78866,1793.3,1793.0,4.3234]
[1743406749247,2.55732,1793.2,1793.1,5.56687337]
[1743406750041,1.4418,1793.2,1793.1,6.68245337]
[1743406750451,2.55732,1793.2,1793.1,6.68245337]
[1743406750749,1.4418,1793.2,1793.1,6.68245337]
[1743406750952,2.55732,1793.2,1793.1,5.56687337]
[1743406751644,2.55732,1793.2,1793.1,6.68245337]
[1743406751839,2.55732,1793.2,1793.1,6.86227337]
[1743406752044,2.55732,1793.2,1793.1,5.56687337]
[1743406754051,1.11558,1793.1,1793.0,0.00837451]
[1743406754242,3.67108,1793.1,1793.0,5.57524788]
[1743406754746,1.11583,1792.7,1792.6,3.2078]
[1743406754946,3.2078,1792.7,1792.2,1.0858]
[1743406755148,1.11608,1792.3,1792.2,5.56687337]
[1743406755656,1.4562,1792.3,1792.2,5.56687337]
[1743406755947,1.4562,1792.3,1792.2,9.89081337]
[1743406756150,0.00837451,1792.4,1792.3,1.11608]
[1743406756350,1.46457451,1792.4,1792.3,12.15115337]
[1743406757347,0.00837451,1792.4,1792.3,12.15115337]
[1743406757741,1.12439451,1792.4,1792.3,9.73987337]
[1743406757942,0.00837451,1792.4,1792.3,10.85595337]
[1743406758453,1.48507451,1792.4,1792.3,10.85595337]
[1743406759349,0.00837451,1792.4,1792.3,10.85595337]
[1743406759550,4.32355,1792.9,1792.8,1.11577]
[1743406759754,1.11583,1792.8,1792.7,5.2888]
[1743406760052,1.11583,1792.8,1792.7,4.173]
[1743406760254,1.11583,1792.8,1792.7,4.08179886]
[1743406760445,1.11602,1792.4,1792.3,3.2078]
[1743406760643,1.11602,1792.4,1792.3,8.49584]
[1743406760844,3.8889,1792.7,1792.4,1.11598]
[1743406760845,1.116,1792.5,1792.4,1.11598]
[1743406761043,1.11593,1792.6,1792.5,1.11591]
[1743406761242,1.11593,1792.6,1792.5,5.19770886]
[1743406761853,1.11593,1792.6,1792.5,4.08179886]
[1743406762249,1.11593,1792.6,1792.5,6.63315886]
[1743406762757,3.26117,1792.7,1792.6,1.11589]
[1743406762948,3.26117,1792.7,1792.6,5.19768886]
[1743406763150,3.26117,1792.7,1792.6,4.08179886]
[1743406763855,1.11608,1792.3,1792.2,1.0858]
[1743406764057,1.11614,1792.2,1792.1,7.39017451]
[1743406764551,1.11614,1792.2,1792.1,4.09017337]
[1743406765248,2.57804,1792.2,1792.1,4.09017337]
[1743406765954,3.61904,1792.2,1792.1,0.00837451]
[1743406766551,1.11639,1791.8,1791.7,4.166]
[1743406766756,1.11639,1791.8,1791.7,8.24779886]
[1743406766960,1.11639,1791.8,1791.7,4.08179886]
[1743406767351,1.11636,1791.9,1791.7,4.08179886]
[1743406767548,2.60559,1791.8,1791.7,1.4151]
[1743406767759,1.4892,1791.8,1791.7,2.53155]
[1743406767951,1.4892,1791.8,1791.7,6.61334886]
[1743406768151,2.60559,1791.8,1791.7,6.61334886]
[1743406768353,1.4892,1791.8,1791.7,4.08179886]
[1743406768554,2.60559,1791.8,1791.7,4.08179886]
[1743406770248,1.11645,1791.7,1791.6,3.21617451]
[1743406770455,3.69715,1791.7,1791.6,0.00837451]
[1743406771058,3.69715,1791.7,1791.6,4.09017337]
[1743406771452,4.76075,1791.7,1791.6,4.09017337]
[1743406771664,4.76075,1791.7,1791.6,0.00837451]
[1743406772052,3.6443,1791.7,1791.2,3.2078]
[1743406772259,1.1167,1791.3,1791.2,1.419]
[1743406772461,1.11669,1791.4,1791.3,4.08179886]
[1743406773667,2.1356,1791.7,1791.6,1.11652]
[1743406773972,1.4722,1791.7,1791.6,1.11652]
[1743406774164,1.11633,1791.9,1791.7,1.11643]
[1743406774468,1.11639,1791.8,1791.7,5.19822886]
[1743406774666,1.11639,1791.8,1791.7,1.11643]
[1743406774866,1.11639,1791.8,1791.7,5.19822886]
[1743406775055,1.12468451,1792.0,1791.7,12.95369886]
[1743406775263,2.59688451,1792.0,1791.9,1.11633]
[1743406775467,1.11633,1791.9,1791.8,5.19813886]
[1743406775768,1.12469451,1792.0,1791.9,5.59289886]
[1743406775969,1.12469451,1792.0,1791.9,6.70922886]
[1743406776172,0.00837451,1792.0,1791.9,6.70922886]
[1743406776371,0.00837451,1792.0,1791.9,5.59289886]
[1743406776675,2.55834451,1792.0,1791.9,6.70922886]
[1743406776868,2.55834451,1792.0,1791.9,5.59289886]
[1743406777062,1.11652,1791.6,1791.5,3.2078]
[1743406777473,1.11652,1791.6,1791.5,7.28959886]
[1743406777769,1.11652,1791.6,1791.5,4.08179886]
[1743406777969,1.11649,1791.7,1791.6,1.11649]
[1743406778273,1.11649,1791.7,1791.6,4.08179886]
[1743406778464,2.55019,1791.7,1791.6,6.57091886]
[1743406778962,2.55019,1791.7,1791.6,5.45439886]
[1743406779172,2.55019,1791.7,1791.6,6.57091886]
[1743406779763,1.4337,1791.7,1791.6,6.57091886]
[1743406779963,2.55015,1791.7,1791.6,5.45439886]
[1743406780164,1.4337,1791.7,1791.6,6.57091886]
[1743406780568,1.12469451,1792.0,1791.9,1.11633]
[1743406780775,1.11635,1791.9,1791.8,1.11634]
[1743406781288,1.11635,1791.9,1791.8,5.19813886]
[1743406781779,2.63065,1791.9,1791.8,6.57833886]
[1743406783078,1.5143,1791.9,1791.8,6.57833886]
[1743406783781,1.5143,1791.9,1791.8,5.19813886]
[1743406784475,1.5143,1791.9,1791.8,6.64713886]
[1743406784674,2.63063,1791.9,1791.8,6.64713886]
[1743406784871,1.5143,1791.9,1791.8,6.64713886]
[1743406785983,2.63063,1791.9,1791.8,6.64713886]
[1743406786784,2.63063,1791.9,1791.8,5.19813886]
[1743406786975,2.5249,1791.9,1791.8,1.11634]
[1743406787176,3.64123,1791.9,1791.8,5.19813886]
[1743406787582,3.64123,1791.9,1791.8,6.67983886]
[1743406788176,2.5249,1791.9,1791.8,6.67983886]
[1743406788373,3.64123,1791.9,1791.8,6.67983886]
[1743406789278,3.64123,1791.9,1791.8,5.56349886]
[1743406789476,3.64123,1791.9,1791.8,6.67988886]
[1743406790685,1.5143,1791.9,1791.8,6.67988886]
[1743406790886,2.63063,1791.9,1791.8,6.67988886]
[1743406791388,1.12464451,1792.0,1791.9,1.11633]
[1743406791587,2.50314451,1792.0,1791.9,6.70232886]
[1743406791789,2.50314451,1792.0,1791.9,10.80032886]
[1743406792087,1.11639,1791.8,1791.7,4.095]
[1743406792287,1.11649,1791.7,1791.5,3.2078]
[1743406792491,1.11649,1791.7,1791.6,2.62066]
[1743406792492,2.49499,1791.7,1791.6,2.62066]
[1743406796289,2.49495,1791.7,1791.6,2.62066]
[1743406796491,1.11644,1791.8,1791.7,1.11645]
[1743406796791,1.4686,1791.8,1791.7,2.55425]
[1743406796989,1.4686,1791.8,1791.7,6.63604886]
[1743406797792,1.11637,1791.9,1791.8,1.11639]
[1743406797993,2.63327,1791.9,1791.8,6.65508886]
[1743406799396,2.63327,1791.9,1791.8,5.53869886]
[1743406799590,2.63327,1791.9,1791.8,6.65508886]
[1743406799788,2.63327,1791.9,1791.8,5.19818886]
[1743406800389,2.63327,1791.9,1791.8,4.08179886]
[1743406800587,2.63327,1791.9,1791.8,5.19818886]
[1743406800896,1.5169,1791.9,1791.8,9.26318886]
[1743406801192,2.79026,1792.3,1792.2,1.11608]
[1743406801193,1.1161,1792.3,1792.2,1.11608]
[1743406801386,1.11614,1792.2,1792.1,5.18419]
[1743406801887,1.11612,1792.3,1792.2,1.11611]
[1743406802096,1.11612,1792.3,1792.2,4.08179886]
[1743406802595,2.61572,1792.3,1792.2,4.08179886]
[1743406802894,2.61572,1792.3,1792.2,5.47559886]
[1743406803196,2.61572,1792.3,1792.2,4.08179886]
[1743406806095,1.11612,1792.3,1792.2,4.08179886]
[1743406806393,2.51592,1792.3,1792.2,4.08179886]
[1743406806695,1.11627,1792.0,1791.9,5.16328]
[1743406806895,1.11624,1792.1,1792.0,1.11624]
[1743406807097,2.61981,1792.1,1792.0,6.66923886]
[1743406807295,3.2078,1792.7,1792.6,1.11589]
[1743406807491,2.11123,1792.8,1792.6,4.07342435]
[1743406807789,2.11123,1792.8,1792.5,10.07557]
[1743406807790,2.11122,1792.8,1792.7,5.18925435]
[1743406807994,2.11122,1792.8,1792.7,1.11583]
[1743406808191,0.9954,1792.8,1792.7,5.18925435]
[1743406808394,2.11117,1792.8,1792.7,5.18925435]
[1743406808597,3.61477,1792.8,1792.7,5.18925435]
[1743406808796,3.61477,1792.8,1792.7,4.07342435]
[1743406808993,3.61477,1792.8,1792.7,5.18925435]
[1743406809298,2.499,1792.8,1792.7,5.18925435]
[1743406809598,1.5036,1792.8,1792.7,5.18925435]